bitfinex-derivatives/quotes_BTCF0:USTF0_20251119
["timestamp","ask_amount","ask_price","bid_price","bid_amount"]
[1763579345215,0.2044586,89324.0,89313.0,0.00016796]
[1763579345216,0.1566911,89314.0,89313.0,0.00016796]
[1763579345414,0.1120911,89314.0,89292.0,0.02992988]
[1763579345618,0.1120911,89314.0,89280.0,0.26694223]
[1763579345619,0.112125,89288.0,89287.0,0.04432]
[1763579345823,0.14881518,89307.0,89287.0,0.00219803]
[1763579346005,0.14881518,89307.0,89292.0,0.1121177]
[1763579346006,0.1121071,89302.0,89292.0,0.1121177]
[1763579346209,0.1121146,89296.0,89293.0,0.00219803]
[1763579346410,0.1121146,89296.0,89278.0,0.02992988]
[1763579346411,0.1121439,89272.0,89271.0,0.02171]
[1763579346607,0.05349518,89297.0,89279.0,0.04432]
[1763579346608,0.00016796,89280.0,89279.0,0.04432]
[1763579346814,0.00016796,89280.0,89279.0,0.15865313]
[1763579347925,0.02320796,89280.0,89279.0,0.02390803]
[1763579348225,0.00016796,89280.0,89279.0,0.04651803]
[1763579349016,0.04009518,89309.0,89308.0,0.02171]
[1763579349218,0.08701518,89313.0,89312.0,0.04432]
[1763579349413,0.04692,89313.0,89312.0,0.04651803]
[1763579349618,0.04009518,89320.0,89313.0,0.1120924]
[1763579349619,0.1120836,89320.0,89313.0,0.1120924]
[1763579349817,0.19677878,89320.0,89319.0,0.00219803]
[1763579350018,0.1566836,89320.0,89319.0,0.00219803]
[1763579350324,0.0446,89312.0,89311.0,0.00016796]
[1763579350626,0.0456,89320.0,89319.0,0.13599293]
[1763579350925,0.001,89320.0,89319.0,0.15860293]
[1763579351421,0.04009518,89331.0,89319.0,0.15860293]
[1763579351422,0.04009518,89346.0,89345.0,0.1120522]
[1763579351614,0.04009518,89354.0,89353.0,0.1120422]
[1763579351819,0.04009518,89359.0,89358.0,0.1120359]
[1763579352132,0.02304,89359.0,89358.0,0.00219803]
[1763579352310,0.04009518,89371.0,89363.0,0.1120292]
[1763579352515,0.05605975,89366.0,89365.0,0.04651803]
[1763579352919,0.00011047,89373.0,89372.0,0.01112]
[1763579353123,0.00011047,89373.0,89372.0,0.01331803]
[1763579354024,0.00011047,89373.0,89372.0,0.00775803]
[1763579354214,0.04471047,89373.0,89372.0,0.00219803]
[1763579355021,0.1120339,89360.0,89350.0,0.26694223]
[1763579355328,0.1120346,89359.0,89357.0,0.00219803]
[1763579355627,0.0134,89360.0,89357.0,0.00219803]
[1763579355817,0.1120346,89359.0,89357.0,0.00219803]
[1763579356123,0.00011047,89373.0,89372.0,0.01112]
[1763579356425,0.00111047,89373.0,89372.0,0.01331803]
[1763579357928,0.06274,89381.0,89380.0,0.1209083]
[1763579358243,0.111981,89402.0,89380.0,0.00219803]
[1763579358433,0.0134,89404.0,89390.0,0.26694223]
[1763579358620,0.0134,89404.0,89403.0,0.00219803]
[1763579359525,0.00027962,89406.0,89404.0,0.1119782]
[1763579359730,0.0134,89424.0,89409.0,0.1119708]
[1763579359731,0.1082558,89422.0,89409.0,0.1119708]
[1763579359933,0.0134,89424.0,89421.0,0.00219803]
[1763579360228,0.0134,89440.0,89421.0,0.00219803]
[1763579360424,0.0134,89424.0,89421.0,0.00219803]
[1763579360731,0.0446,89422.0,89421.0,0.00219803]
[1763579361924,0.0174,89424.0,89421.0,0.00219803]
[1763579362625,0.002,89422.0,89421.0,0.00219803]
[1763579362933,0.0486,89422.0,89421.0,0.00219803]
[1763579363530,0.002,89422.0,89421.0,0.00219803]
[1763579363831,0.0174,89424.0,89421.0,0.00219803]
[1763579364130,0.1119544,89423.0,89421.0,0.00219803]
[1763579364630,0.002,89422.0,89421.0,0.00219803]
[1763579365130,0.002,89422.0,89421.0,0.11415493]
[1763579365332,0.002,89422.0,89421.0,0.00219803]
[1763579365738,0.04825,89422.0,89421.0,0.00219803]
[1763579365927,0.05025,89422.0,89421.0,0.00219803]
[1763579366135,0.1565144,89415.0,89414.0,0.00016777]
[1763579366530,0.1119607,89418.0,89414.0,0.0023658]
[1763579367132,0.04455,89415.0,89414.0,0.0023658]
[1763579367438,0.04555,89415.0,89414.0,0.0023658]
[1763579367633,0.04655,89415.0,89414.0,0.0023658]
[1763579368222,0.1585144,89415.0,89414.0,0.0023658]
[1763579368740,0.01311,89392.0,89380.0,0.26694223]
[1763579369038,0.01311,89408.0,89391.0,0.00219803]
[1763579369222,0.01311,89408.0,89398.0,0.26694223]
[1763579369424,0.1119783,89404.0,89399.0,0.11418233]
[1763579369636,0.1119783,89404.0,89399.0,0.00219803]
[1763579369831,0.01311,89408.0,89393.0,0.00016777]
[1763579369832,0.1565407,89394.0,89393.0,0.00016777]
[1763579370034,0.01311,89400.0,89393.0,0.0023658]
[1763579370239,0.01311,89400.0,89396.0,0.1119881]
[1763579370432,0.01311,89400.0,89399.0,0.00219803]
[1763579370637,0.05766,89400.0,89399.0,0.00219803]
[1763579371739,0.1565407,89394.0,89393.0,0.00016777]
[1763579371939,0.04455,89394.0,89393.0,0.0023658]
[1763579372132,0.01311,89400.0,89397.0,0.1119867]
[1763579372329,0.01311,89400.0,89399.0,0.00219803]
[1763579372728,0.1250932,89400.0,89399.0,0.00219803]
[1763579373128,0.1476032,89400.0,89399.0,0.00219803]
[1763579373329,0.1691832,89400.0,89399.0,0.00219803]
[1763579373925,0.1701832,89400.0,89399.0,0.00219803]
[1763579374126,0.0582,89400.0,89399.0,0.00219803]
[1763579374536,0.1701832,89400.0,89399.0,0.00219803]
[1763579374933,0.0582,89400.0,89399.0,0.00219803]
[1763579375237,0.001,89400.0,89399.0,0.00219803]
[1763579375438,0.01311,89408.0,89399.0,0.00219803]
[1763579375641,0.1119744,89407.0,89406.0,0.1119751]
[1763579375941,0.01311,89408.0,89407.0,0.00219803]
[1763579376142,0.1119511,89426.0,89407.0,0.00219803]
[1763579376331,0.111936,89438.0,89414.0,0.21144036]
[1763579376635,0.05749,89424.0,89423.0,0.00219803]
[1763579377737,0.03591,89424.0,89423.0,0.00219803]
[1763579378142,0.05749,89424.0,89423.0,0.00219803]
[1763579378440,0.0144,89424.0,89423.0,0.00219803]
[1763579379046,0.0134,89424.0,89423.0,0.00219803]
[1763579379234,0.03891,89424.0,89423.0,0.00219803]
[1763579379838,0.06049,89424.0,89423.0,0.00219803]
[1763579380646,0.1560532,89416.0,89415.0,0.00016777]
[1763579381034,0.1119703,89411.0,89405.0,0.1119762]
[1763579381234,0.01278,89415.0,89411.0,0.1119693]
[1763579381442,0.01278,89415.0,89414.0,0.00219803]
[1763579382033,0.05687,89415.0,89414.0,0.00219803]
[1763579382448,0.05687,89415.0,89414.0,0.11416373]
[1763579382739,0.03529,89415.0,89414.0,0.11416373]
[1763579382945,0.03729,89415.0,89414.0,0.00219803]
[1763579384042,0.05887,89415.0,89414.0,0.00219803]
[1763579387034,0.05887,89415.0,89414.0,0.11416373]
[1763579387238,0.05887,89415.0,89414.0,0.00219803]
[1763579391353,0.03729,89415.0,89414.0,0.00219803]
[1763579391551,0.03729,89415.0,89414.0,0.03232283]
[1763579391746,0.05887,89415.0,89414.0,0.00219803]
[1763579391952,0.05887,89415.0,89414.0,0.03232283]
[1763579392152,0.05887,89415.0,89414.0,0.00219803]
[1763579394240,0.1560632,89408.0,89407.0,0.0301248]
[1763579394550,0.04628803,89408.0,89407.0,0.00073267]
[1763579395438,0.04728803,89408.0,89407.0,0.00073267]
[1763579395643,0.002,89408.0,89407.0,0.00073267]
[1763579395839,0.04828803,89408.0,89407.0,0.00073267]
[1763579396352,0.04828803,89408.0,89407.0,0.03075384]
[1763579396944,0.04828803,89408.0,89407.0,0.00073267]
[1763579397140,0.04828803,89408.0,89407.0,0.03075384]
[1763579397453,0.04828803,89408.0,89406.0,4.4e-07]
[1763579397454,0.1560644,89407.0,89406.0,4.4e-07]
[1763579397653,0.04628803,89407.0,89406.0,4.4e-07]
[1763579397952,0.02470803,89407.0,89406.0,4.4e-07]
[1763579398150,0.02470803,89407.0,89406.0,0.03002161]
[1763579398545,0.04628803,89407.0,89406.0,0.0300289]
[1763579398753,0.02377803,89407.0,89406.0,4.4e-07]
[1763579399053,0.00219803,89407.0,89406.0,4.4e-07]
[1763579399249,0.00319803,89407.0,89406.0,4.4e-07]
[1763579399452,0.001,89407.0,89406.0,4.4e-07]
[1763579399651,0.002,89407.0,89406.0,4.4e-07]
[1763579400150,0.00419803,89407.0,89406.0,4.4e-07]
[1763579400749,0.002,89407.0,89406.0,4.4e-07]
[1763579400949,0.00419803,89407.0,89406.0,4.4e-07]
[1763579401258,0.11617243,89407.0,89406.0,4.4e-07]
[1763579402260,0.04515,89394.0,89393.0,0.04015314]
[1763579402554,0.04515,89391.0,89390.0,0.21144036]
[1763579402755,0.05894,89388.0,89387.0,0.04015314]
[1763579402955,0.04515,89385.0,89384.0,0.04015314]
[1763579403144,0.00219803,89385.0,89384.0,0.1120032]
[1763579403344,0.04734803,89385.0,89382.0,0.04015314]
[1763579403547,0.04515,89383.0,89382.0,0.04015314]
[1763579403744,0.04734803,89383.0,89382.0,0.04015314]
[1763579404055,0.00219803,89383.0,89380.0,0.1120072]
[1763579404245,0.04515,89391.0,89390.0,0.1119948]
[1763579404442,0.04515,89391.0,89378.0,0.01110371]
[1763579404443,0.01379,89388.0,89387.0,0.1119989]
[1763579404642,0.00016777,89393.0,89388.0,0.111997]
[1763579404855,0.157147,89389.0,89388.0,0.04006723]
[1763579405053,0.15934503,89389.0,89385.0,0.04006723]
[1763579405258,0.1571507,89386.0,89384.0,0.04006723]
[1763579405460,0.1571557,89382.0,89381.0,0.04006723]
[1763579405754,0.15935373,89382.0,89381.0,0.112007]
[1763579405955,0.01379,89388.0,89387.0,0.1119995]
[1763579406458,0.04515,89387.0,89386.0,0.04006723]
[1763579406664,0.00219803,89387.0,89386.0,0.1120007]
[1763579406851,0.00219803,89387.0,89386.0,0.15206793]
[1763579407049,0.1571507,89386.0,89384.0,0.04006723]
[1763579407350,0.04515,89379.0,89378.0,0.21144036]
[1763579407552,0.04515,89377.0,89371.0,0.04006723]
[1763579407751,0.04515,89377.0,89369.0,0.25150759]
[1763579407752,0.04734803,89377.0,89369.0,0.25150759]
[1763579407956,0.04734803,89377.0,89369.0,0.21144036]
[1763579408156,0.04734803,89377.0,89370.0,0.1120203]
[1763579408346,0.04734803,89377.0,89369.0,0.21144036]
[1763579408347,0.1571708,89370.0,89369.0,0.21144036]
[1763579408550,0.1571708,89370.0,89361.0,0.01139404]
[1763579408551,0.04515,89362.0,89361.0,0.12342614]
[1763579408767,0.01379,89364.0,89361.0,0.1120321]
[1763579408954,0.01379,89376.0,89360.0,0.04006723]
[1763579409157,0.02532803,89375.0,89374.0,0.1120158]
[1763579409351,0.04734803,89375.0,89374.0,0.1120158]
[1763579409759,0.04515,89367.0,89366.0,0.21160813]
[1763579409956,0.04734803,89367.0,89366.0,0.00016777]
[1763579410458,0.01379,89376.0,89367.0,0.1120245]
[1763579410651,0.06113803,89376.0,89375.0,0.1120145]
[1763579411560,0.01598803,89376.0,89370.0,0.04006723]
[1763579411757,0.01598803,89376.0,89366.0,0.06155094]
[1763579411758,0.02313,89370.0,89369.0,0.1120214]
[1763579411953,0.04515,89367.0,89366.0,0.11347332]
[1763579412148,0.04734803,89367.0,89366.0,0.11347332]
[1763579412369,0.04634803,89367.0,89366.0,0.00044752]
[1763579412953,0.04634803,89367.0,89344.0,0.04006723]
[1763579412954,0.1340646,89351.0,89344.0,0.04006723]
[1763579413159,0.04515,89344.0,89343.0,0.2021348]
[1763579413354,0.04734803,89344.0,89343.0,0.0900802]
[1763579413556,0.01379,89349.0,89348.0,0.1120484]
[1763579413857,0.01379,89349.0,89343.0,0.5320546]
[1763579413858,0.04515,89344.0,89343.0,0.5320546]
[1763579414063,0.04743008,89344.0,89343.0,0.5320546]
[1763579414357,8.205e-05,89344.0,89343.0,0.5320546]
[1763579414560,0.02321205,89344.0,89343.0,0.5320546]
[1763579414949,8.205e-05,89344.0,89343.0,0.5320546]
[1763579415659,0.00016786,89352.0,89351.0,0.1120446]
[1763579415963,0.04531786,89352.0,89351.0,0.1120446]
[1763579416157,0.04751589,89352.0,89351.0,0.1120446]
[1763579416752,0.04757324,89352.0,89351.0,0.1140446]
[1763579417369,0.00022521,89352.0,89351.0,0.1120446]
[1763579417663,0.04757324,89352.0,89351.0,0.1120446]
[1763579418854,0.04515,89344.0,89343.0,0.42]
[1763579419062,0.04734803,89344.0,89343.0,0.42]
[1763579420066,0.02313,89344.0,89343.0,0.42]
[1763579420267,0.04734803,89344.0,89343.0,0.42]
[1763579420667,0.04734803,89344.0,89335.0,0.04023509]
[1763579420668,0.1699434,89336.0,89335.0,0.04023509]
[1763579420864,0.06007803,89336.0,89335.0,0.00016786]
[1763579421062,0.04734803,89336.0,89335.0,0.00016786]
[1763579421255,0.01379,89349.0,89335.0,0.39519786]
[1763579421459,0.04734803,89349.0,89348.0,0.1346884]
[1763579421659,0.01598803,89349.0,89340.0,0.1120575]
[1763579421860,0.01598803,89349.0,89348.0,0.1120484]
[1763579422169,0.06113803,89349.0,89348.0,0.1120484]
[1763579422864,0.06113803,89349.0,89339.0,0.21144036]
[1763579422865,0.04515,89340.0,89339.0,0.21144036]
[1763579423070,0.1710034,89336.0,89335.0,0.35016786]
[1763579423271,0.17320143,89336.0,89335.0,0.35016786]
[1763579423464,0.06113803,89336.0,89335.0,0.00016786]
[1763579423865,0.06113803,89336.0,89335.0,0.35016786]
[1763579424560,0.04734803,89336.0,89335.0,0.35016786]
[1763579424763,0.00219803,89336.0,89335.0,0.39519786]
[1763579425470,0.1701178,89349.0,89348.0,0.1120484]
[1763579425672,0.17231583,89349.0,89348.0,0.1120484]
[1763579425872,0.023,89340.0,89339.0,0.21144036]
[1763579426171,0.04634803,89340.0,89339.0,0.1120597]
[1763579427169,0.11425773,89340.0,89339.0,0.1120597]
[1763579427364,0.1562134,89336.0,89335.0,0.46223236]
[1763579427566,0.1562134,89336.0,89335.0,0.35016786]
[1763579427567,0.17110143,89336.0,89335.0,0.35016786]
[1763579427765,0.05903803,89336.0,89335.0,0.35016786]
[1763579430177,0.04634803,89336.0,89335.0,0.35016786]
[1763579430471,0.04634803,89336.0,89335.0,0.37185786]
[1763579430671,0.15841143,89336.0,89335.0,0.35016786]
[1763579431273,0.1562247,89327.0,89326.0,0.00027988]
[1763579431469,0.04415,89314.0,89312.0,0.04006723]
[1763579431669,0.04415,89310.0,89309.0,0.0001105]
[1763579431878,0.04634803,89310.0,89309.0,0.0001105]
[1763579432569,0.00219803,89310.0,89309.0,0.0424005]
[1763579432764,0.04779803,89310.0,89309.0,0.0001105]
[1763579433379,0.04685538,89310.0,89309.0,0.0001105]
[1763579433671,0.04685538,89310.0,89291.0,0.06010342]
[1763579433672,0.1577186,89292.0,89291.0,0.04006723]
[1763579433878,0.0465307,89292.0,89291.0,0.001]
[1763579434972,0.0465307,89292.0,89291.0,0.002]
[1763579435672,0.0465307,89292.0,89291.0,0.02313]
[1763579436075,0.0237507,89292.0,89291.0,0.04429]
[1763579436275,0.0237507,89292.0,89291.0,0.04529]
[1763579436679,0.0465307,89292.0,89291.0,0.003]
[1763579438174,0.014,89304.0,89292.0,0.1121183]
[1763579438375,0.02282,89294.0,89293.0,0.26746934]
[1763579438576,0.0475307,89294.0,89293.0,0.1131174]
[1763579438781,0.0475307,89294.0,89293.0,0.1554074]
[1763579439383,0.0475307,89294.0,89293.0,0.1342474]
[1763579439580,0.0475307,89294.0,89293.0,0.1554074]
[1763579440087,0.0019307,89294.0,89293.0,0.1554074]
[1763579440281,0.0475307,89294.0,89293.0,0.1342474]
[1763579440490,0.0475307,89294.0,89293.0,0.1131174]
[1763579440681,0.0475307,89294.0,89293.0,0.1141174]
[1763579441799,0.0475307,89294.0,89293.0,0.002]
[1763579441999,0.0475307,89294.0,89293.0,0.001]
[1763579442397,0.0456,89287.0,89286.0,0.00028]
[1763579442601,0.0456,89287.0,89286.0,0.04357]
[1763579442602,0.0475307,89287.0,89286.0,0.04357]
[1763579442995,0.0475307,89287.0,89286.0,0.00128]
[1763579443196,0.0475307,89287.0,89286.0,0.00028]
[1763579443396,0.0456,89284.0,89283.0,0.0001123]
[1763579443596,0.0475307,89284.0,89283.0,0.0222423]
[1763579443905,0.0455307,89284.0,89283.0,0.0434023]
[1763579444295,0.0455307,89284.0,89283.0,0.0011123]
[1763579444992,0.0455307,89284.0,89283.0,0.0031123]
[1763579445191,0.0455307,89284.0,89283.0,0.0021123]
[1763579445400,0.0019307,89284.0,89283.0,0.0454023]
[1763579445698,0.00012392,89294.0,89293.0,0.04229]
[1763579445897,0.00205462,89294.0,89293.0,0.1554074]
[1763579446102,0.04765462,89294.0,89293.0,0.1554074]
[1763579446302,0.04765462,89294.0,89293.0,0.1131174]
[1763579446714,0.04765462,89294.0,89293.0,0.001]
[1763579449403,0.02282,89284.0,89283.0,0.1545322]
[1763579449717,0.0475307,89284.0,89283.0,0.1555322]
[1763579449898,0.0019307,89284.0,89283.0,0.1555322]
[1763579450813,0.0019307,89284.0,89283.0,0.1575322]
[1763579450814,0.0475307,89284.0,89283.0,0.1575322]
[1763579451207,0.0475307,89284.0,89283.0,0.1152422]
[1763579451600,0.0247507,89284.0,89283.0,0.1575322]
[1763579452606,0.0475307,89284.0,89283.0,0.1152422]
[1763579453301,0.0475307,89284.0,89283.0,0.0031123]
[1763579453908,0.0456,89271.0,89270.0,0.26646934]
[1763579454118,0.04765626,89271.0,89270.0,0.1131463]
[1763579454307,0.04765626,89271.0,89270.0,0.001]
[1763579455211,0.02282,89262.0,89261.0,0.19451483]
[1763579455413,0.0237507,89262.0,89261.0,0.1554476]
[1763579456307,0.0465307,89262.0,89261.0,0.1131576]
[1763579456512,0.0455307,89262.0,89261.0,0.1131576]
[1763579456914,0.0455307,89262.0,89261.0,0.1554476]
[1763579457313,0.0455307,89262.0,89261.0,0.1564476]
[1763579457910,0.0455307,89262.0,89261.0,0.1141576]
[1763579458109,0.0455307,89262.0,89261.0,0.1352876]
[1763579458318,0.0455307,89262.0,89261.0,0.1564476]
[1763579458517,0.0019307,89262.0,89261.0,0.1564476]
[1763579460223,0.0247507,89262.0,89261.0,0.1564476]
[1763579460719,0.00016796,89270.0,89269.0,0.1544375]
[1763579460920,0.04576796,89270.0,89269.0,0.15663553]
[1763579461223,0.0596,89265.0,89264.0,0.1121538]
[1763579461412,0.0456,89265.0,89264.0,0.13548183]
[1763579461617,0.02282,89265.0,89264.0,0.15664183]
[1763579462008,0.04605,89263.0,89262.0,0.04008522]
[1763579462214,0.04605,89250.0,89249.0,0.15235864]
[1763579462415,0.04605,89250.0,89249.0,0.11447145]
[1763579462618,0.0461457,89250.0,89249.0,0.00010072]
[1763579463018,0.04605,89241.0,89240.0,0.03009286]
[1763579463319,0.04605,89235.0,89234.0,0.1121914]
[1763579463619,0.04605,89235.0,89234.0,0.11438943]
[1763579464618,0.04705,89235.0,89234.0,0.11438943]
[1763579464818,0.04705,89235.0,89234.0,0.15864943]
[1763579464819,0.001,89235.0,89234.0,0.15864943]
[1763579465423,0.04705,89235.0,89234.0,0.11438943]
[1763579465627,0.04705,89235.0,89234.0,0.00219803]
[1763579465816,0.04805,89235.0,89234.0,0.00219803]
[1763579466527,0.04705,89235.0,89234.0,0.00219803]
[1763579466924,0.001,89235.0,89234.0,0.04645803]
[1763579467419,0.002,89235.0,89234.0,0.04645803]
[1763579468023,0.002,89235.0,89234.0,0.07653229]
[1763579468426,0.002,89235.0,89234.0,0.04645803]
[1763579468724,0.002,89235.0,89234.0,0.07653229]
[1763579468939,0.04705,89235.0,89234.0,0.04645803]
[1763579469228,0.001,89235.0,89234.0,0.04645803]
[1763579469419,0.04621807,89249.0,89248.0,0.1121739]
[1763579469619,0.04621807,89249.0,89248.0,0.11437193]
[1763579469821,0.04621807,89249.0,89248.0,0.15863193]
[1763579470726,0.04721807,89249.0,89248.0,0.15863193]
[1763579470927,0.04721807,89249.0,89248.0,0.11437193]
[1763579471229,0.04621807,89249.0,89248.0,0.11437193]
[1763579471423,0.04605,89240.0,89237.0,0.03007426]
[1763579471618,0.04605,89238.0,89237.0,0.00219803]
[1763579471822,0.04605,89238.0,89237.0,0.04645803]
[1763579472016,0.02299,89238.0,89237.0,0.04645803]
[1763579472217,0.04605,89238.0,89237.0,0.00219803]
[1763579472418,0.04605,89227.0,89226.0,0.03007426]
[1763579472629,0.1582516,89226.0,89225.0,0.00219803]
[1763579472931,0.1582516,89226.0,89210.0,0.27911934]
[1763579472932,0.02299,89214.0,89213.0,0.03007426]
[1763579473221,0.02299,89214.0,89213.0,0.00219803]
[1763579473428,0.02299,89214.0,89213.0,0.13646563]
[1763579474016,0.02299,89214.0,89213.0,0.00219803]
[1763579474017,0.04605,89214.0,89213.0,0.00219803]
[1763579474419,0.04605,89206.0,89199.0,0.03007426]
[1763579474617,0.01271,89220.0,89201.0,0.00219803]
[1763579474618,0.04605,89202.0,89201.0,0.00219803]
[1763579474922,0.04605,89193.0,89186.0,0.14232576]
[1763579475119,0.04605,89193.0,89192.0,0.0023155]
[1763579475921,0.04605,89193.0,89192.0,0.0243655]
[1763579476124,0.15477,89201.0,89200.0,0.1122343]
[1763579476327,0.15477,89201.0,89200.0,0.11443233]
[1763579476728,0.04605,89201.0,89200.0,0.11443233]
[1763579477432,0.00014024,89205.0,89204.0,0.1564893]
[1763579477633,0.04619024,89205.0,89204.0,0.11442733]
[1763579478128,0.04605,89200.0,89199.0,0.1122345]
[1763579478319,0.00014024,89205.0,89204.0,0.1564893]
[1763579478525,0.00014024,89205.0,89204.0,0.15868733]
[1763579478831,0.02313024,89205.0,89204.0,0.15868733]
[1763579479225,0.04619024,89205.0,89204.0,0.00219803]
[1763579479426,0.04605,89197.0,89196.0,0.1122386]
[1763579479625,0.04605,89197.0,89196.0,0.11443733]
[1763579480020,0.04605,89193.0,89192.0,0.00011747]
[1763579480226,0.04605,89193.0,89192.0,0.0023155]
[1763579481730,0.04605,89193.0,89192.0,0.00011747]
[1763579483628,0.1582931,89193.0,89192.0,0.00011747]
[1763579483823,0.04605,89193.0,89192.0,0.00011747]
[1763579484034,0.02299,89193.0,89192.0,0.1588199]
[1763579484735,0.04605,89193.0,89192.0,0.0023155]
[1763579485037,0.04605,89193.0,89192.0,0.00011747]
[1763579485630,0.04605,89193.0,89192.0,0.0023155]
[1763579486526,0.04605,89193.0,89192.0,0.00011747]
[1763579487347,0.1557258,89167.0,89166.0,0.00028038]
[1763579487837,0.04345,89167.0,89166.0,0.00028038]
[1763579488243,0.04356627,89167.0,89166.0,0.00028038]
[1763579489236,0.02176627,89167.0,89166.0,0.04606841]
[1763579489629,0.04356627,89167.0,89166.0,0.04606841]
[1763579489833,0.04356627,89167.0,89166.0,0.00247841]
[1763579490040,0.00011627,89167.0,89166.0,0.04606841]
[1763579490441,0.04345,89200.0,89180.0,0.01327]
[1763579490644,0.1556843,89200.0,89199.0,0.00219803]
[1763579491340,0.15577237,89200.0,89199.0,0.00219803]
[1763579491543,0.02165,89188.0,89186.0,0.26646934]
[1763579491744,0.02165,89188.0,89187.0,0.00219803]
[1763579491941,0.112243,89194.0,89187.0,0.00219803]
[1763579492242,0.00108807,89200.0,89187.0,0.00219803]
[1763579492243,0.04531,89199.0,89198.0,0.1122363]
[1763579492541,0.04531,89199.0,89198.0,0.00219803]
[1763579492542,0.1575455,89199.0,89198.0,0.00219803]
[1763579493337,0.1595455,89199.0,89198.0,0.00219803]
[1763579493946,0.04731,89199.0,89198.0,0.00219803]
[1763579494638,0.04931,89199.0,89198.0,0.00219803]
[1763579494942,0.02203,89193.0,89192.0,0.1122433]
[1763579495344,0.1342731,89193.0,89192.0,0.11444133]
[1763579495534,0.1714931,89193.0,89192.0,0.00219803]
[1763579495735,0.04531,89188.0,89187.0,0.1122505]
[1763579495935,0.04531,89188.0,89187.0,0.11444853]
[1763579496242,0.04531,89188.0,89187.0,0.00219803]
[1763579496938,0.04731,89188.0,89187.0,0.00219803]
[1763579497139,0.04731,89188.0,89187.0,0.04576803]
[1763579497338,0.04731,89188.0,89187.0,0.02353803]
[1763579497533,0.04831,89188.0,89187.0,0.04576803]
[1763579497734,0.003,89188.0,89187.0,0.04576803]
[1763579500244,0.003,89188.0,89187.0,0.00219803]
[1763579500245,0.04831,89188.0,89187.0,0.00219803]
[1763579500442,0.003,89188.0,89187.0,0.04576803]
[1763579500942,0.04831,89188.0,89187.0,0.04576803]
[1763579502241,0.1605594,89188.0,89187.0,0.00219803]
[1763579502442,0.06225,89188.0,89187.0,0.11444863]
[1763579503242,0.1744994,89188.0,89187.0,0.11444863]
[1763579503450,0.1744994,89188.0,89187.0,0.00219803]
[1763579503643,0.1744994,89188.0,89178.0,0.21262827]
[1763579503644,0.1291894,89188.0,89186.0,0.03014077]
[1763579503944,0.1575707,89179.0,89178.0,0.00016817]
[1763579504339,0.1575858,89167.0,89166.0,0.00028038]
[1763579504545,0.15767443,89167.0,89166.0,0.00028038]
[1763579505136,0.1575984,89157.0,89152.0,0.04008522]
[1763579505442,0.00735,89160.0,89130.0,0.21270427]
[1763579505443,0.157611,89147.0,89146.0,0.04008522]
[1763579505636,0.0454175,89147.0,89146.0,0.11450033]
[1763579505839,0.0454175,89147.0,89146.0,0.00219803]
[1763579506035,0.1576123,89146.0,89145.0,0.04008522]
[1763579506240,0.1576123,89146.0,89145.0,0.00219803]
[1763579506551,0.04431,89146.0,89145.0,0.00219803]
[1763579507247,0.04431,89146.0,89145.0,0.00319803]
[1763579508652,0.0001075,89147.0,89146.0,0.1558723]
[1763579508951,0.04009518,89182.0,89162.0,0.1558521]
[1763579509154,0.1122664,89175.0,89162.0,0.15805013]
[1763579509749,0.02219817,89163.0,89162.0,0.15805013]
[1763579509953,0.02233343,89163.0,89162.0,0.15805013]
[1763579511044,0.15789433,89163.0,89162.0,0.00219803]
[1763579511244,0.04561343,89163.0,89162.0,0.02353803]
[1763579511444,0.04561343,89163.0,89162.0,0.00219803]
[1763579512251,0.04531,89151.0,89150.0,0.02134]
[1763579512451,0.04531,89151.0,89150.0,0.13583523]
[1763579512649,0.04531,89151.0,89150.0,0.00219803]
[1763579513454,0.04531,89151.0,89150.0,0.02353803]
[1763579514545,0.04531,89151.0,89150.0,0.00219803]
[1763579514751,0.04531,89151.0,89150.0,0.02353803]
[1763579514949,0.04531,89151.0,89150.0,0.13583523]
[1763579515154,0.04531,89151.0,89150.0,0.11449523]
[1763579515958,0.1122951,89152.0,89141.0,0.1123078]
[1763579515959,0.04531,89142.0,89141.0,0.1123078]
[1763579516161,0.15772756,89142.0,89141.0,0.00219803]
[1763579517155,0.04531,89134.0,89133.0,0.02134]
[1763579517349,0.02203,89134.0,89133.0,0.04576803]
[1763579517656,0.04558852,89142.0,89141.0,0.1123086]
[1763579517853,0.04558852,89142.0,89141.0,0.11450663]
[1763579518055,0.04558852,89142.0,89141.0,0.15907663]
[1763579518745,0.02330852,89142.0,89141.0,0.15807663]
[1763579518949,0.00227852,89142.0,89141.0,0.15807663]
[1763579519358,0.04758852,89142.0,89141.0,0.15807663]
[1763579519564,0.02430852,89142.0,89141.0,0.15807663]
[1763579520257,0.02430852,89142.0,89141.0,0.00219803]
[1763579520258,0.04758852,89142.0,89141.0,0.00219803]
[1763579520451,0.04758852,89142.0,89126.0,0.0002805]
[1763579520452,0.1576362,89127.0,89126.0,0.0002805]
[1763579520655,0.15773315,89127.0,89126.0,0.0002805]
[1763579520951,0.04540695,89127.0,89126.0,0.00247853]
[1763579521549,0.04540695,89127.0,89126.0,0.0002805]
[1763579521754,0.04544,89106.0,89105.0,0.1123536]
[1763579521957,0.04544,89106.0,89105.0,0.13565163]
[1763579522152,0.04560826,89114.0,89113.0,0.1123439]
[1763579522459,0.04560826,89114.0,89113.0,0.00219803]
[1763579522666,0.04560826,89114.0,89113.0,0.04557803]
[1763579522667,0.00016826,89114.0,89113.0,0.04557803]
[1763579522852,0.00026806,89114.0,89113.0,0.04557803]
[1763579523053,0.01394,89144.0,89126.0,0.1123275]
[1763579523054,0.1123058,89144.0,89126.0,0.1123275]
[1763579523253,0.1122883,89158.0,89130.0,0.2124601]
[1763579523254,0.02128,89148.0,89130.0,0.2124601]
[1763579523449,0.04544,89142.0,89141.0,0.0211]
[1763579523653,0.04544,89142.0,89141.0,0.00219803]
[1763579523846,0.04544,89142.0,89130.0,0.2124601]
[1763579524056,0.04544,89132.0,89131.0,0.00219803]
[1763579524258,0.04544,89132.0,89131.0,0.02329803]
[1763579524458,0.04544,89132.0,89131.0,0.04557803]
[1763579524958,0.0231,89132.0,89131.0,0.04557803]
[1763579525553,0.00011719,89141.0,89131.0,0.04557803]
[1763579525953,0.0231,89132.0,89131.0,0.04557803]
[1763579526359,0.04544,89132.0,89131.0,0.00219803]
[1763579526555,0.157765,89128.0,89127.0,0.00016826]
[1763579526747,0.04544,89128.0,89127.0,0.00236629]
[1763579526954,0.04544,89128.0,89127.0,0.02346629]
[1763579527255,0.04544,89128.0,89127.0,0.04574629]
[1763579527656,0.04544,89138.0,89137.0,0.1123136]
[1763579527857,0.04544,89138.0,89137.0,0.15789163]
[1763579528360,0.04555719,89141.0,89137.0,0.00219803]
[1763579528557,0.04544,89138.0,89137.0,0.04557803]
[1763579528754,0.0241,89138.0,89137.0,0.04557803]